bitfinex-derivatives/quotes_BTCF0:USTF0_20250114
["timestamp","ask_amount","ask_price","bid_price","bid_amount"]
[1736895347011,0.06143508,96793.0,96792.0,0.052675]
[1736895347211,0.06143508,96793.0,96792.0,0.053675]
[1736895348407,0.00155044,96793.0,96792.0,0.053675]
[1736895352517,0.00155044,96793.0,96792.0,0.052675]
[1736895353815,0.00155044,96793.0,96792.0,0.051675]
[1736895354015,0.00155044,96793.0,96792.0,0.052675]
[1736895365228,0.06143451,96793.0,96792.0,0.052675]
[1736895366826,0.00155044,96793.0,96792.0,0.052675]
[1736895370723,0.06143446,96793.0,96792.0,0.052675]
[1736895372127,0.05988402,96793.0,96792.0,0.052675]
[1736895373132,0.051672,96798.0,96797.0,0.051672]
[1736895374438,0.18746611,96798.0,96797.0,0.051672]
[1736895375032,0.18746611,96798.0,96797.0,0.052672]
[1736895377637,0.13579411,96798.0,96797.0,0.052672]
[1736895378234,0.05988087,96798.0,96797.0,0.052672]
[1736895378434,0.05988087,96799.0,96797.0,0.001]
[1736895378646,0.05988087,96799.0,96798.0,0.412471]
[1736895381229,0.05988087,96799.0,96798.0,0.413471]
[1736895383836,0.1,96800.0,96798.0,0.3618]
[1736895384041,0.1,96800.0,96799.0,0.051671]
[1736895385251,0.1,96800.0,96799.0,0.052671]
[1736895391654,0.1,96800.0,96799.0,0.413471]
[1736895393349,0.1,96800.0,96797.0,0.01012207]
[1736895393550,0.1,96800.0,96795.0,0.051673]
[1736895393752,0.051673,96796.0,96795.0,0.051673]
[1736895394450,0.11155517,96796.0,96795.0,0.051673]
[1736895394859,0.11155517,96796.0,96795.0,0.052673]
[1736895396248,0.11155517,96796.0,96795.0,0.001]
[1736895397456,0.47235517,96796.0,96795.0,0.001]
[1736895399261,0.48257079,96796.0,96795.0,0.001]
[1736895400558,0.55849297,96796.0,96795.0,0.001]
[1736895403852,0.48257079,96796.0,96795.0,0.001]
[1736895411765,0.5584927,96796.0,96795.0,0.001]
[1736895412567,0.48257079,96796.0,96795.0,0.001]
[1736895412962,0.12177079,96796.0,96795.0,0.001]
[1736895413357,0.18447079,96796.0,96795.0,0.001]
[1736895416466,0.051677,96788.0,96787.0,0.051677]
[1736895416661,0.412477,96788.0,96787.0,0.051677]
[1736895417665,0.051677,96788.0,96787.0,0.051677]
[1736895417875,0.11155917,96788.0,96787.0,0.051677]
[1736895418670,0.11155917,96788.0,96781.0,0.01026646]
[1736895418969,0.05168,96784.0,96783.0,0.051678]
[1736895420372,0.11156217,96784.0,96783.0,0.051678]
[1736895425769,0.05988217,96784.0,96783.0,0.051678]
[1736895426071,0.13580646,96784.0,96783.0,0.051678]
[1736895427275,0.18748446,96787.0,96786.0,0.051678]
[1736895437580,0.11156017,96787.0,96786.0,0.051678]
[1736895438180,0.051678,96787.0,96786.0,0.051678]
[1736895439379,0.11156017,96787.0,96786.0,0.051678]
[1736895445289,0.05988217,96787.0,96780.0,0.37128719]
[1736895445490,0.051679,96784.0,96783.0,0.051679]
[1736895446582,0.11156117,96784.0,96783.0,0.051679]
[1736895453985,0.18749032,96784.0,96783.0,0.051679]
[1736895461587,0.05168,96782.0,96781.0,0.01034023]
[1736895461787,0.051684,96774.0,96773.0,0.051685]
[1736895461987,0.051684,96774.0,96772.0,0.3608]
[1736895461988,0.3608,96779.0,96760.0,0.36132]
[1736895462189,0.05169,96764.0,96762.0,0.051691]
[1736895462491,0.05169,96764.0,96758.0,0.2375968]
[1736895462797,0.05169,96764.0,96755.0,0.1859038]
[1736895462998,0.051694,96756.0,96755.0,0.1859038]
[1736895463300,0.412494,96756.0,96755.0,0.1859038]
[1736895464199,0.051705,96736.0,96733.0,0.051706]
[1736895464396,0.051705,96736.0,96733.0,0.01037639]
[1736895464594,0.051705,96736.0,96726.0,0.0306]
[1736895464894,0.051705,96736.0,96726.0,0.041136]
[1736895465103,0.051705,96736.0,96721.0,0.14270115]
[1736895465407,0.051705,96736.0,96735.0,0.01055052]
[1736895465995,0.051705,96736.0,96735.0,0.00855052]
[1736895466598,0.051705,96736.0,96735.0,0.01055052]
[1736895468903,0.051705,96736.0,96735.0,0.009]
[1736895481211,0.051705,96736.0,96735.0,0.060705]
[1736895484513,0.06748986,96745.0,96735.0,0.060705]
[1736895484810,0.36140001,96760.0,96745.0,0.0517]
[1736895485006,0.11918486,96755.0,96753.0,0.051696]
[1736895485203,0.41309201,96760.0,96753.0,0.051696]
[1736895485603,0.05229201,96760.0,96753.0,0.051696]
[1736895485810,0.051692,96760.0,96753.0,0.051696]
[1736895486804,0.06748986,96763.0,96752.0,0.3608]
[1736895486805,0.06748986,96763.0,96762.0,0.051691]
[1736895487000,0.05169,96764.0,96763.0,0.05169]
[1736895504422,0.05169,96764.0,96763.0,0.06199064]
[1736895512535,0.051688,96768.0,96767.0,0.051687]
[1736895513418,0.11159233,96768.0,96767.0,0.051687]
[1736895517439,0.18753168,96768.0,96767.0,0.051687]
[1736895519637,0.11159233,96768.0,96767.0,0.051687]
[1736895520630,0.051688,96768.0,96767.0,0.051687]
[1736895521537,0.11159233,96768.0,96767.0,0.051687]
[1736895521931,0.05990433,96768.0,96767.0,0.051687]
[1736895527049,0.11159233,96768.0,96767.0,0.051687]
[1736895533244,0.05990433,96768.0,96767.0,0.051687]
[1736895533648,0.24725977,96778.0,96777.0,0.051683]
[1736895533950,0.19471334,96791.0,96789.0,0.051676]
[1736895534144,0.19471334,96791.0,96789.0,0.412476]
[1736895535242,0.1,96800.0,96799.0,0.051671]
[1736895536752,0.1,96800.0,96799.0,0.083371]
[1736895537339,0.1,96800.0,96799.0,0.115271]
[1736895537854,0.1,96800.0,96799.0,0.12563733]
[1736895538343,0.1,96800.0,96799.0,0.12663733]
[1736895539854,0.1,96800.0,96799.0,0.09473733]
[1736895540154,0.1,96800.0,96799.0,0.052671]
[1736895540454,0.51247,96800.0,96799.0,0.001]
[1736895540849,0.05168,96783.0,96782.0,0.05168]
[1736895541044,0.051684,96778.0,96777.0,0.051682]
[1736895541353,0.3608,96778.0,96773.0,0.051684]
[1736895541653,0.051686,96770.0,96769.0,0.0532369]
[1736895541846,0.412486,96770.0,96769.0,0.0015499]
[1736895542152,0.051694,96758.0,96757.0,0.051693]
[1736895542544,0.13497972,96767.0,96755.0,0.3608]
[1736895542850,0.051694,96756.0,96755.0,0.3608]
[1736895544763,0.051702,96742.0,96740.0,0.36132]
[1736895545052,0.051702,96742.0,96727.0,0.3608]
[1736895545246,0.10266995,96741.0,96740.0,0.051702]
[1736895545450,0.051702,96742.0,96740.0,0.051702]
[1736895545850,0.051702,96742.0,96740.0,0.053702]
[1736895547648,0.051702,96742.0,96740.0,0.060702]
[1736895547950,0.051702,96742.0,96740.0,0.009]
[1736895555753,0.051702,96741.0,96740.0,0.009]
[1736895559057,0.051702,96741.0,96740.0,0.060702]
[1736895562759,0.051702,96741.0,96740.0,0.009]
[1736895566066,0.051702,96741.0,96740.0,0.060702]
[1736895570070,0.1116214,96741.0,96740.0,0.060702]
[1736895574473,0.18758597,96741.0,96740.0,0.060702]
[1736895578071,0.13588397,96741.0,96740.0,0.060702]
[1736895578273,0.13588397,96741.0,96740.0,0.421502]
[1736895578678,0.24697346,96744.0,96743.0,0.051701]
[1736895578865,0.09632356,96744.0,96743.0,0.051701]
[1736895579069,0.09632356,96744.0,96743.0,0.351701]
[1736895579270,5.6e-07,96744.0,96743.0,0.351701]
[1736895579478,0.34058219,96767.0,96743.0,0.351701]
[1736895579479,0.27816724,96763.0,96762.0,0.051691]
[1736895579685,0.27816724,96763.0,96762.0,0.412491]
[1736895580179,0.23669596,96769.0,96768.0,0.051688]
[1736895580572,0.23669596,96769.0,96768.0,0.352688]
[1736895580774,0.06895489,96790.0,96789.0,0.051676]
[1736895580978,0.00155043,96790.0,96789.0,0.051676]
[1736895585180,0.05322643,96790.0,96789.0,0.051676]
[1736895590484,0.051676,96790.0,96789.0,0.051676]
[1736895591573,0.051677,96787.0,96780.0,0.051681]
[1736895591774,0.051681,96781.0,96780.0,0.051681]
[1736895594584,0.051681,96781.0,96758.0,0.3608]
[1736895594784,0.051688,96771.0,96770.0,0.051686]
[1736895595086,0.3608,96775.0,96758.0,0.37117885]
[1736895595273,0.3608,96765.0,96750.0,0.18483374]
[1736895595479,0.051695,96756.0,96755.0,0.051694]
[1736895595990,0.032,96759.0,96754.0,0.051695]
[1736895596196,0.032,96759.0,96749.0,0.051697]
[1736895596379,0.051698,96750.0,96749.0,0.051697]
[1736895597079,0.032,96759.0,96742.0,0.3608]
[1736895597276,0.051699,96748.0,96747.0,0.051698]
[1736895598680,0.051699,96748.0,96747.0,0.055698]
[1736895599091,0.051699,96748.0,96747.0,0.056698]
[1736895600394,0.412499,96748.0,96747.0,0.005]
[1736895600889,0.3608,96748.0,96736.0,0.3608]
[1736895601090,0.051704,96737.0,96736.0,0.3608]
[1736895601293,0.051704,96737.0,96736.0,0.412505]
[1736895602088,0.051704,96737.0,96736.0,0.415505]
[1736895602290,0.051704,96737.0,96736.0,0.423505]
[1736895603300,0.051701,96744.0,96743.0,0.051701]
[1736895603478,0.051701,96744.0,96736.0,0.3718]
[1736895603479,0.10258229,96760.0,96736.0,0.3718]
[1736895603790,0.051697,96751.0,96750.0,0.051697]
[1736895605781,0.10258229,96760.0,96750.0,0.003]
[1736895605981,0.051694,96756.0,96755.0,0.051693]
[1736895607384,0.0326,96758.0,96757.0,0.051693]
[1736895608587,0.0326,96758.0,96757.0,0.052693]
[1736895608791,0.0326,96758.0,96757.0,0.055693]
[1736895609287,0.3608,96766.0,96757.0,0.051693]
[1736895609589,0.0331,96773.0,96772.0,0.051685]
[1736895610184,0.0331,96773.0,96765.0,0.412489]
[1736895610185,0.051677,96788.0,96787.0,0.051676]
[1736895611596,0.0657,96789.0,96788.0,0.051677]
[1736895612292,0.0331,96789.0,96788.0,0.051677]
[1736895612495,0.1,96800.0,96799.0,0.051671]
[1736895614391,0.104,96800.0,96799.0,0.052671]
[1736895615097,0.105,96800.0,96799.0,0.052671]
[1736895626803,0.105,96800.0,96799.0,0.413471]
[1736895630301,0.15667,96800.0,96799.0,0.413471]
[1736895641010,0.15667,96800.0,96799.0,0.3618]
[1736895641311,0.15667,96800.0,96799.0,0.001]
[1736895641900,0.051681,96780.0,96779.0,0.18424774]
[1736895642104,0.412481,96780.0,96779.0,0.18424774]
[1736895642619,0.412481,96780.0,96779.0,0.13434774]
[1736895642912,0.412481,96780.0,96779.0,0.08444774]
[1736895643115,0.051689,96768.0,96767.0,0.051688]
[1736895643316,0.051689,96765.0,96764.0,0.15690623]
[1736895643706,0.051689,96765.0,96764.0,0.20859623]
[1736895644217,0.051689,96765.0,96764.0,0.1943339]
[1736895644417,0.051689,96765.0,96764.0,0.05169]
[1736895645615,0.051689,96765.0,96764.0,0.05569]
[1736895646511,0.051689,96765.0,96764.0,0.05169]
[1736895646706,0.051689,96765.0,96764.0,0.05269]
[1736895647102,0.051689,96765.0,96764.0,0.001]
[1736895648712,0.051691,96761.0,96760.0,0.051691]
[1736895652417,0.051691,96761.0,96760.0,0.052691]
[1736895656321,0.051691,96761.0,96760.0,0.051691]
[1736895656519,0.051691,96761.0,96760.0,0.052691]
[1736895658824,0.051691,96761.0,96760.0,0.051691]
[1736895659424,0.051691,96761.0,96760.0,0.052691]
[1736895659819,0.051691,96761.0,96760.0,0.051691]
[1736895660023,0.051691,96761.0,96760.0,0.052691]
[1736895662431,0.0313,96771.0,96760.0,0.001]
[1736895662633,0.3608,96772.0,96760.0,0.10358229]
[1736895662924,0.412486,96772.0,96771.0,0.051686]
[1736895665129,0.416486,96772.0,96771.0,0.051686]
[1736895665627,0.412486,96772.0,96771.0,0.051686]
[1736895667728,0.051686,96772.0,96771.0,0.051686]
[1736895668425,0.052686,96772.0,96771.0,0.051686]
[1736895668836,0.051686,96772.0,96771.0,0.051686]
[1736895681037,0.052686,96772.0,96771.0,0.051686]
[1736895681237,0.053686,96772.0,96771.0,0.051686]
[1736895681739,0.051686,96772.0,96771.0,0.051686]
[1736895684934,0.051689,96768.0,96767.0,0.051688]
[1736895689137,0.051689,96768.0,96767.0,0.052688]
[1736895696449,0.051684,96777.0,96776.0,0.051683]
[1736895697447,0.052684,96777.0,96776.0,0.051683]
[1736895698343,0.054684,96777.0,96776.0,0.051683]
[1736895699243,0.052684,96777.0,96776.0,0.051683]
[1736895699552,0.054684,96777.0,96776.0,0.051683]
[1736895701252,0.054684,96777.0,96776.0,0.06220704]
[1736895701452,0.052684,96777.0,96776.0,0.06220704]
[1736895701654,0.054684,96777.0,96776.0,0.06220704]
[1736895702044,0.052684,96777.0,96776.0,0.06220704]
[1736895702244,0.054684,96777.0,96776.0,0.06220704]
[1736895702651,0.052684,96777.0,96776.0,0.06220704]
[1736895702950,0.053684,96777.0,96776.0,0.06220704]
[1736895703150,0.054684,96777.0,96776.0,0.06220704]
[1736895704855,0.052684,96777.0,96776.0,0.06220704]
[1736895705057,0.054684,96777.0,96776.0,0.06220704]
[1736895705446,0.052684,96777.0,96776.0,0.06220704]
[1736895705653,0.054684,96777.0,96776.0,0.06220704]
[1736895707041,0.053684,96777.0,96776.0,0.06220704]
[1736895707243,0.054684,96777.0,96776.0,0.06220704]
[1736895708148,0.003,96777.0,96776.0,0.06220704]
[1736895708550,0.24676377,96783.0,96776.0,1.86320704]
[1736895708750,0.24376377,96783.0,96782.0,0.41248]
[1736895709050,0.30845472,96794.0,96782.0,0.41248]
[1736895709251,0.30845472,96794.0,96793.0,0.051674]
[1736895709753,0.18260558,96794.0,96793.0,0.352674]
[1736895709960,0.17630558,96794.0,96793.0,1.852674]
[1736895710251,0.1,96800.0,96799.0,0.051671]
[1736895710448,0.1,96800.0,96799.0,0.412471]
[1736895710647,0.1,96800.0,96799.0,0.413471]
[1736895711756,0.1,96800.0,96799.0,0.420471]
[1736895712347,0.1,96800.0,96799.0,0.421471]
[1736895712756,0.1,96800.0,96799.0,0.424471]
[1736895713459,0.1,96800.0,96799.0,0.421471]
[1736895713653,0.1,96800.0,96799.0,0.424471]
[1736895714057,0.1,96800.0,96799.0,0.423471]
[1736895714245,0.1,96800.0,96799.0,0.420471]
[1736895714559,0.1,96800.0,96799.0,0.423471]
[1736895714958,0.1,96800.0,96799.0,0.424471]
[1736895715555,0.1,96800.0,96799.0,0.423471]
[1736895716252,0.15167,96800.0,96799.0,0.061671]
[1736895717153,0.15167,96800.0,96799.0,0.060671]
[1736895718165,0.1,96800.0,96786.0,0.3619]
[1736895718458,0.051677,96787.0,96786.0,0.312]
[1736895718960,0.3608,96794.0,96782.0,0.05168]
[1736895719155,0.051679,96784.0,96782.0,0.05168]
[1736895720361,0.0304,96783.0,96782.0,0.05168]
[1736895721662,0.3608,96794.0,96777.0,0.01039947]
[1736895721854,0.3608,96794.0,96793.0,0.051674]
[1736895722164,0.051666,96809.0,96799.0,0.051671]
[1736895722661,0.0314,96812.0,96799.0,0.052671]
[1736895723166,0.0314,96812.0,96799.0,1.552671]
[1736895723861,0.0314,96812.0,96799.0,0.052671]
[1736895724063,0.0314,96812.0,96799.0,0.053671]
[1736895725056,0.0314,96812.0,96799.0,0.055671]
[1736895725457,0.15425591,96810.0,96799.0,0.06523723]
[1736895725664,0.051666,96809.0,96799.0,0.06723723]
[1736895727469,0.051666,96809.0,96799.0,0.06623723]
[1736895727668,0.051666,96809.0,96799.0,0.06323723]
[1736895727867,0.051666,96809.0,96799.0,0.06723723]
[1736895728656,0.10258991,96810.0,96799.0,0.06723723]
[1736895728857,0.051667,96807.0,96799.0,0.06723723]
[1736895730367,0.051668,96805.0,96799.0,0.06723723]
[1736895731067,0.051668,96805.0,96799.0,0.06523723]
[1736895731258,0.0314,96812.0,96799.0,0.06623723]
[1736895731766,0.07837445,96800.0,96799.0,0.42703723]
[1736895732762,0.07837445,96800.0,96799.0,0.42503723]
[1736895732962,0.07837445,96800.0,96799.0,0.42703723]
[1736895733367,0.0317,96817.0,96799.0,0.37536623]
[1736895733570,0.0317,96817.0,96816.0,0.051662]
[1736895734767,0.083361,96817.0,96814.0,0.3608]
[1736895734972,0.0317,96817.0,96816.0,0.051662]
[1736895735171,0.0347,96817.0,96816.0,0.051662]
[1736895735667,0.0357,96817.0,96816.0,0.051662]
[1736895737369,0.0327,96817.0,96816.0,0.051662]
[1736895737564,0.0357,96817.0,96816.0,0.051662]
[1736895738570,0.0347,96817.0,96816.0,0.051662]
[1736895738772,0.0357,96817.0,96816.0,0.051662]
[1736895739162,0.0357,96817.0,96816.0,0.06197418]
[1736895743168,0.0357,96817.0,96816.0,0.051662]
[1736895743571,0.087361,96817.0,96816.0,0.051662]
[1736895744468,0.0357,96817.0,96816.0,0.051662]
[1736895749185,0.0357,96817.0,96816.0,0.412462]
[1736895755077,0.051666,96809.0,96808.0,0.3608]
[1736895755875,0.051666,96809.0,96807.0,0.051666]
[1736895756087,0.116466,96808.0,96807.0,0.051666]
[1736895756379,0.051668,96806.0,96799.0,0.051671]
[1736895756582,0.051668,96806.0,96798.0,0.2206]
[1736895756778,0.051672,96797.0,96796.0,0.05322242]
[1736895757078,0.051672,96797.0,96796.0,0.00154942]
[1736895758477,0.051672,96797.0,96796.0,0.007]
[1736895760181,0.06201531,96797.0,96796.0,0.007]
[1736895764475,0.051672,96797.0,96796.0,0.007]
[1736895764684,0.3608,96803.0,96801.0,0.05167]
[1736895764685,0.051669,96803.0,96801.0,0.05167]
[1736895764975,0.3608,96811.0,96810.0,0.051665]
[1736895765175,0.051663,96814.0,96796.0,0.01727916]
[1736895765386,0.051663,96814.0,96813.0,0.051663]
[1736895766484,0.0322,96819.0,96810.0,0.3608]
[1736895766789,0.051665,96811.0,96810.0,0.3608]
[1736895768390,0.052665,96811.0,96810.0,0.3608]
[1736895768690,0.052665,96811.0,96809.0,0.051665]
[1736895770887,0.051665,96810.0,96809.0,0.051665]
[1736895771294,0.051668,96805.0,96804.0,0.3608]
[1736895772598,0.051668,96805.0,96804.0,0.412468]
[1736895772990,0.051668,96805.0,96804.0,0.414468]
[1736895775695,0.051668,96805.0,96804.0,0.002]
[1736895778598,0.051668,96805.0,96782.0,0.3608]
[1736895778798,0.051678,96785.0,96782.0,0.05168]
[1736895780410,0.10258991,96810.0,96782.0,0.3608]
[1736895780602,0.051669,96803.0,96797.0,0.10258991]
[1736895780805,0.051669,96803.0,96802.0,0.051669]
[1736895781009,0.051664,96813.0,96806.0,0.051667]
[1736895781208,0.412467,96807.0,96806.0,0.051667]
[1736895781911,0.051669,96803.0,96802.0,0.051669]
[1736895784103,0.051669,96803.0,96802.0,0.053669]
[1736895784601,0.051669,96803.0,96802.0,0.054669]
[1736895785813,0.051669,96803.0,96802.0,0.415469]
[1736895787516,0.051664,96813.0,96802.0,0.3638]
[1736895787814,0.051661,96818.0,96817.0,0.051661]
[1736895788114,0.412456,96828.0,96826.0,0.051656]
[1736895788514,0.412456,96828.0,96812.0,0.0313]
[1736895788710,0.051656,96828.0,96827.0,0.051656]
[1736895788907,0.051657,96825.0,96822.0,0.051659]
[1736895789102,0.3608,96828.0,96812.0,0.0313]
[1736895789307,0.3608,96828.0,96811.0,0.3608]
[1736895789308,0.10258991,96822.0,96816.0,0.051662]
[1736895790104,0.10258991,96822.0,96811.0,0.3608]
[1736895790305,0.051669,96803.0,96802.0,0.3628]
[1736895790509,0.3608,96817.0,96802.0,0.3628]
[1736895790715,0.051663,96815.0,96811.0,0.051665]
[1736895790908,0.051663,96815.0,96802.0,0.3608]
[1736895791108,0.051663,96815.0,96814.0,0.051663]
[1736895791712,0.05166,96821.0,96810.0,0.3608]
[1736895791914,0.001,96822.0,96820.0,0.3608]
[1736895792308,0.001,96822.0,96821.0,0.051659]
[1736895792513,0.051657,96826.0,96820.0,0.3608]
[1736895792714,0.051657,96826.0,96825.0,0.051657]
[1736895793113,0.051657,96825.0,96801.0,0.01015247]
[1736895793415,0.051668,96805.0,96804.0,0.051668]
[1736895793816,0.0911,96810.0,96800.0,0.3608]
[1736895794010,0.05167,96804.0,96803.0,0.051669]
[1736895794412,0.051669,96802.0,96801.0,0.003]
[1736895795012,0.3608,96805.0,96800.0,0.003]
[1736895795211,0.05167,96801.0,96800.0,0.003]
[1736895796626,0.051673,96796.0,96795.0,0.051673]
[1736895797124,0.051676,96791.0,96790.0,0.051676]
[1736895797320,0.3608,96797.0,96784.0,0.00154978]
[1736895797528,0.051678,96785.0,96784.0,0.00154978]
[1736895798527,0.051678,96785.0,96784.0,0.00554978]
[1736895799636,0.051678,96785.0,96784.0,0.05722878]
[1736895800026,0.052678,96785.0,96784.0,0.06622878]
[1736895804329,0.001,96785.0,96784.0,0.06622878]
[1736895810140,0.001,96785.0,96784.0,0.42702878]
[1736895815140,0.001,96785.0,96784.0,0.01454978]
[1736895815341,0.052678,96785.0,96784.0,0.01454978]
[1736895816147,0.052678,96785.0,96784.0,0.06622878]
[1736895819247,0.052678,96785.0,96784.0,0.01454978]
[1736895820953,0.413478,96785.0,96784.0,0.01454978]
[1736895823157,0.3618,96785.0,96784.0,0.06622878]
[1736895823359,0.001,96785.0,96784.0,0.42702878]
[1736895825457,0.001,96785.0,96784.0,0.43760407]
[1736895825653,0.001,96785.0,96784.0,0.42702878]
[1736895826060,0.052678,96785.0,96784.0,0.42702878]
[1736895826661,0.052678,96785.0,96784.0,0.37534978]
[1736895828261,0.052678,96785.0,96784.0,0.42702878]
[1736895828769,0.001,96785.0,96784.0,0.42702878]
[1736895831364,0.052678,96785.0,96784.0,0.42702878]
[1736895835277,0.052678,96785.0,96784.0,0.37534978]
[1736895840583,0.052678,96785.0,96784.0,0.42702878]
[1736895840977,0.001,96785.0,96784.0,0.42702878]
[1736895841677,0.001,96785.0,96784.0,0.425479]
[1736895843575,0.051667,96806.0,96805.0,0.051667]
[1736895843896,0.0321,96818.0,96804.0,0.3608]
[1736895844087,0.051662,96817.0,96812.0,0.3608]
[1736895844279,0.0321,96818.0,96812.0,0.3608]
[1736895844481,0.61903811,96819.0,96812.0,0.3608]
[1736895844985,0.61903811,96819.0,96813.0,0.051663]
[1736895845686,0.00064,96819.0,96818.0,0.051661]
[1736895845887,0.10258991,96830.0,96828.0,0.051655]
[1736895846088,0.0646,96832.0,96828.0,0.051655]
[1736895846691,0.116254,96832.0,96828.0,0.051655]
[1736895847098,0.116254,96832.0,96829.0,0.051655]
[1736895847283,0.051654,96831.0,96829.0,0.051655]
[1736895847483,0.3608,96830.0,96821.0,0.051659]
[1736895847787,0.051658,96824.0,96822.0,0.051659]
[1736895848289,0.3608,96830.0,96816.0,0.051662]
[1736895848290,0.051661,96818.0,96816.0,0.051662]
[1736895848490,0.3608,96830.0,96797.0,0.033]
[1736895848491,0.3921,96817.0,96797.0,0.033]
[1736895848685,0.051667,96807.0,96794.0,0.0304]
[1736895848987,0.0311,96806.0,96805.0,0.051667]
[1736895850094,0.3919,96806.0,96798.0,0.051671]
[1736895850390,0.051671,96800.0,96799.0,0.051671]
[1736895850782,0.051671,96800.0,96799.0,0.412471]
[1736895851988,0.051671,96800.0,96799.0,0.415471]
[1736895852390,0.051671,96800.0,96799.0,0.416471]
[1736895855491,0.0311,96806.0,96799.0,0.3648]
[1736895855690,0.051657,96825.0,96824.0,0.051657]
[1736895856282,0.0949,96832.0,96820.0,0.3608]
[1736895856283,0.051659,96821.0,96820.0,0.3608]
[1736895856491,0.05166,96819.0,96818.0,0.051661]
[1736895856796,0.3608,96819.0,96799.0,0.004]
[1736895856993,0.3608,96819.0,96799.0,0.052671]
[1736895856994,0.05167,96800.0,96799.0,0.052671]
[1736895857295,0.05167,96800.0,96799.0,0.055671]
[1736895857683,0.05167,96800.0,96799.0,0.052671]
[1736895857889,0.05167,96800.0,96799.0,0.001]
[1736895858191,0.051673,96795.0,96794.0,0.3608]
[1736895860486,0.051673,96795.0,96794.0,0.3628]
[1736895860693,0.051673,96795.0,96794.0,0.3678]
[1736895861992,0.051673,96795.0,96794.0,0.419474]
[1736895863094,0.051673,96795.0,96794.0,0.058674]
[1736895863296,0.051673,96795.0,96794.0,0.007]
[1736895863692,0.0949,96809.0,96794.0,0.007]
[1736895863906,0.3608,96796.0,96794.0,0.007]
[1736895864097,0.051673,96795.0,96794.0,0.007]
[1736895864803,0.412473,96795.0,96794.0,0.005]
[1736895865008,0.051673,96795.0,96794.0,0.007]
[1736895865508,0.0949,96809.0,96794.0,0.007]
[1736895865713,0.0949,96809.0,96798.0,0.3608]
[1736895866006,0.3608,96808.0,96798.0,0.3608]
[1736895866200,0.051671,96799.0,96798.0,0.412471]
[1736895866804,0.051673,96795.0,96794.0,0.002]
[1736895867004,0.051673,96795.0,96794.0,0.007]
[1736895867197,0.3608,96808.0,96794.0,0.007]
[1736895867396,0.051669,96803.0,96802.0,0.051668]
[1736895867601,0.3608,96808.0,96807.0,0.051667]
[1736895867807,0.412466,96808.0,96807.0,0.051667]
[1736895868397,0.051666,96808.0,96807.0,0.051667]
[1736895868912,0.89079905,96839.0,96807.0,0.3608]
[1736895869112,0.051661,96822.0,96821.0,0.051658]
[1736895870196,0.0621,96828.0,96816.0,0.3608]
[1736895870399,0.0621,96828.0,96827.0,0.051656]
[1736895870997,0.113755,96828.0,96827.0,0.051656]
[1736895871609,0.121755,96828.0,96827.0,0.052656]
[1736895871803,0.01,96828.0,96827.0,0.413456]
[1736895872000,0.008,96828.0,96827.0,0.413456]
[1736895873198,0.006,96828.0,96827.0,0.413456]
[1736895873404,0.008,96828.0,96827.0,0.413456]
[1736895873607,0.007,96828.0,96827.0,0.412456]
[1736895873901,0.007,96828.0,96827.0,0.413456]
[1736895875312,0.006,96828.0,96827.0,0.413456]
[1736895875514,0.006,96828.0,96827.0,0.412456]
[1736895885314,0.006,96828.0,96818.0,0.01043214]
[1736895885508,0.006,96828.0,96827.0,0.051656]
[1736895886415,0.004,96828.0,96827.0,0.051656]
[1736895887315,0.006,96828.0,96827.0,0.051656]
[1736895889117,0.006,96828.0,96827.0,0.06322838]
[1736895891727,0.006,96828.0,96827.0,0.42302838]
[1736895892116,0.006,96828.0,96827.0,0.412456]
[1736895892428,0.006,96828.0,96819.0,0.3608]
[1736895892725,0.051657,96825.0,96824.0,0.051657]
[1736895894412,0.054657,96825.0,96824.0,0.051657]
[1736895895326,0.001,96825.0,96824.0,0.051657]
[1736895895517,0.00407016,96825.0,96824.0,0.051657]
[1736895896519,0.05572716,96825.0,96824.0,0.051657]
[1736895896822,0.05272716,96825.0,96824.0,0.051657]
[1736895897022,0.05572716,96825.0,96824.0,0.051657]
[1736895897726,0.05872716,96825.0,96824.0,0.051657]
[1736895898335,0.05572716,96825.0,96824.0,0.051657]
[1736895901027,0.00407016,96825.0,96824.0,0.051657]
[1736895902631,0.001,96825.0,96819.0,0.7216]
[1736895902820,0.051648,96842.0,96819.0,0.7216]
[1736895902821,0.051649,96841.0,96824.0,0.001]
[1736895903137,0.051649,96841.0,96839.0,0.051649]
[1736895904837,0.051649,96841.0,96839.0,0.052649]
[1736895904838,0.060649,96841.0,96839.0,0.052649]
[1736895905430,0.061649,96841.0,96839.0,0.001]
[1736895905823,0.051655,96829.0,96821.0,0.18466673]
[1736895906034,0.051655,96829.0,96826.0,0.051656]
[1736895906435,0.051655,96829.0,96827.0,0.051656]
[1736895907224,0.054655,96829.0,96827.0,0.051656]
[1736895907940,0.031,96828.0,96827.0,0.051656]
[1736895909130,0.031,96828.0,96823.0,0.051658]
[1736895909333,0.051658,96824.0,96823.0,0.051658]
[1736895909629,0.031,96828.0,96817.0,0.051661]
[1736895909630,0.051659,96821.0,96817.0,0.051661]
[1736895909836,0.0625,96820.0,96812.0,0.18466673]
[1736895910026,0.051661,96818.0,96815.0,0.051662]
[1736895910334,0.051662,96816.0,96815.0,0.051662]
[1736895912139,0.051662,96816.0,96815.0,0.052662]
[1736895917525,0.051662,96816.0,96815.0,0.001]
[1736895917731,0.051662,96816.0,96810.0,0.3608]
[1736895917934,0.051668,96805.0,96797.0,0.18460313]
[1736895918135,0.0303,96804.0,96797.0,0.18460313]
[1736895918534,0.081968,96804.0,96803.0,0.051669]